[Event "Titled Tuesday Blitz October 19 2021"]
[White "Hjartarson, Johann"]
[Black "Gabrielian, Artur"]
[WhiteFideId "2300044"]
[BlackFideId "4131002"]
[WhiteElo "2502"]
[BlackElo "2489"]
[Result "1-0"]
[Round "11"]
[TimeControl "180+1"]
[Date "2021.10.19"]
[WhiteClock "0:00:16"]
[BlackClock "0:00:02"]

1. Nf3 {[%clk 0:03:00]}  Nf6 {[%clk 0:02:59]} 2. g3 {[%clk 0:03:00]}  g6 {[%clk 0:02:59]} 3. b4 {[%clk 0:03:00]}  Bg7 {[%clk 0:02:57]} 4. Bb2 {[%clk 0:03:00]}  c6 {[%clk 0:02:57]} 5. Bg2 {[%clk 0:02:59]}  a5 {[%clk 0:02:57]} 6. a3 {[%clk 0:02:58]}  Na6 {[%clk 0:02:54]} 7. O-O {[%clk 0:02:56]}  O-O {[%clk 0:02:53]} 8. d3 {[%clk 0:02:54]}  d5 {[%clk 0:02:49]} 9. Nbd2 {[%clk 0:02:53]}  Bg4 {[%clk 0:02:45]} 10. Rb1 {[%clk 0:02:52]}  axb4 {[%clk 0:02:44]} 11. axb4 {[%clk 0:02:52]}  Nc7 {[%clk 0:02:38]} 12. Ne5 {[%clk 0:02:48]}  Be6 {[%clk 0:02:31]} 13. c4 {[%clk 0:02:46]}  dxc4 {[%clk 0:02:21]} 14. Ndxc4 {[%clk 0:02:37]}  Ncd5 {[%clk 0:02:20]} 15. Qd2 {[%clk 0:02:23]}  Nb6 {[%clk 0:02:15]} 16. Rfc1 {[%clk 0:02:16]}  Nxc4 {[%clk 0:02:15]} 17. Nxc4 {[%clk 0:02:15]}  Bd5 {[%clk 0:02:11]} 18. Na5 {[%clk 0:02:04]}  Bxg2 {[%clk 0:02:10]} 19. Kxg2 {[%clk 0:02:03]}  Qd7 {[%clk 0:02:03]} 20. Bxf6 {[%clk 0:01:50]}  Bxf6 {[%clk 0:02:03]} 21. Qe3 {[%clk 0:01:50]}  Bd4 {[%clk 0:01:56]} 22. Qf3 {[%clk 0:01:48]}  Bb6 {[%clk 0:01:49]} 23. Nc4 {[%clk 0:01:42]}  Bd4 {[%clk 0:01:49]} 24. Rc2 {[%clk 0:01:40]}  h5 {[%clk 0:01:38]} 25. h3 {[%clk 0:01:36]}  Ra6 {[%clk 0:01:27]} 26. Na5 {[%clk 0:01:25]}  Rb6 {[%clk 0:01:21]} 27. e3 {[%clk 0:01:14]}  Bg7 {[%clk 0:01:21]} 28. d4 {[%clk 0:01:13]}  Rb5 {[%clk 0:01:21]} 29. Rc5 {[%clk 0:01:11]}  Rb6 {[%clk 0:01:00]} 30. Nc4 {[%clk 0:01:07]}  Rb5 {[%clk 0:00:58]} 31. Rxb5 {[%clk 0:01:04]}  cxb5 {[%clk 0:00:58]} 32. Na5 {[%clk 0:01:04]}  e5 {[%clk 0:00:55]} 33. dxe5 {[%clk 0:00:57]}  Bxe5 {[%clk 0:00:54]} 34. Nxb7 {[%clk 0:00:56]}  Qd3 {[%clk 0:00:49]} 35. Rd1 {[%clk 0:00:47]}  Qc4 {[%clk 0:00:49]} 36. Qd5 {[%clk 0:00:39]}  Bb2 {[%clk 0:00:17]} 37. Nd6 {[%clk 0:00:33]}  Qxb4 {[%clk 0:00:16]} 38. Qxb5 {[%clk 0:00:28]}  Qxb5 {[%clk 0:00:16]} 39. Nxb5 {[%clk 0:00:28]}  Rb8 {[%clk 0:00:16]} 40. Rd5 {[%clk 0:00:28]}  Bf6 {[%clk 0:00:15]} 41. g4 {[%clk 0:00:27]}  hxg4 {[%clk 0:00:15]} 42. hxg4 {[%clk 0:00:27]}  Kg7 {[%clk 0:00:16]} 43. g5 {[%clk 0:00:26]}  Be7 {[%clk 0:00:15]} 44. f4 {[%clk 0:00:26]}  Ra8 {[%clk 0:00:14]} 45. Kf3 {[%clk 0:00:25]}  Ra1 {[%clk 0:00:13]} 46. Nd4 {[%clk 0:00:25]}  Rf1+ {[%clk 0:00:12]} 47. Ke4 {[%clk 0:00:24]}  Ra1 {[%clk 0:00:12]} 48. Nc6 {[%clk 0:00:24]}  Bf8 {[%clk 0:00:12]} 49. Rd7 {[%clk 0:00:24]}  Ra4+ {[%clk 0:00:10]} 50. Kf3 {[%clk 0:00:23]}  Kg8 {[%clk 0:00:06]} 51. Ne5 {[%clk 0:00:23]}  Ra3 {[%clk 0:00:05]} 52. Rxf7 {[%clk 0:00:16]}  Bc5 {[%clk 0:00:05]} 53. Rf6 {[%clk 0:00:16]}  Rxe3+ {[%clk 0:00:04]} 54. Kg4 {[%clk 0:00:16]}  Re1 {[%clk 0:00:03]} 55. Rxg6+ {[%clk 0:00:16]}  Kf8 {[%clk 0:00:03]} 56. Rc6 {[%clk 0:00:16]}  Bd4 {[%clk 0:00:03]} 57. Kf5 {[%clk 0:00:16]}  Ke7 {[%clk 0:00:01]} 58. g6 {[%clk 0:00:16]}  Bxe5 {[%clk 0:00:01]} 59. fxe5 {[%clk 0:00:16]}  Rf1+ {[%clk 0:00:02]} 60. Kg5 {[%clk 0:00:16]}  Rg1+ {[%clk 0:00:02]} 61. Kh6 {[%clk 0:00:16]}  Rh1+ {[%clk 0:00:03]} 62. Kg7 {[%clk 0:00:16]}  Re1 {[%clk 0:00:03]} 63. Kg8 {[%clk 0:00:16]}  Rxe5 {[%clk 0:00:03]} 64. g7 {[%clk 0:00:16]}  Rg5 {[%clk 0:00:03]} 65. Rc2 {[%clk 0:00:16]}  Kf6 {[%clk 0:00:03]} 66. Rf2+ {[%clk 0:00:16]}  Kg6 {[%clk 0:00:03]} 67. Kf8 {[%clk 0:00:16]}  Kh7 {[%clk 0:00:02]} 68. Rh2+ {[%clk 0:00:16]}  Kg6 {[%clk 0:00:02]} 69. g8=Q+ {[%clk 0:00:16]} 1-0


[Site "https://www.chess.com"]

[Event "Titled Tuesday Blitz October 19 2021"]
[White "Jaracz, Pawel"]
[Black "Vokhidov, Shamsiddin"]
[WhiteFideId "1102222"]
[BlackFideId "14204223"]
[WhiteElo "2495"]
[BlackElo "2616"]
[Result "0-1"]
[Round "11"]
[TimeControl "180+1"]
[Date "2021.10.19"]
[WhiteClock "0:01:00"]
[BlackClock "0:02:24"]

1. e4 {[%clk 0:03:00]}  c5 {[%clk 0:02:59]} 2. Nf3 {[%clk 0:03:01]}  g6 {[%clk 0:03:00]} 3. d4 {[%clk 0:02:59]}  cxd4 {[%clk 0:03:01]} 4. Nxd4 {[%clk 0:02:59]}  Bg7 {[%clk 0:03:01]} 5. Nc3 {[%clk 0:02:59]}  Nc6 {[%clk 0:03:02]} 6. Be3 {[%clk 0:02:59]}  Nf6 {[%clk 0:03:02]} 7. Nxc6 {[%clk 0:02:57]}  bxc6 {[%clk 0:03:02]} 8. e5 {[%clk 0:02:57]}  Ng8 {[%clk 0:03:02]} 9. Bd4 {[%clk 0:02:57]}  Qc7 {[%clk 0:03:02]} 10. f4 {[%clk 0:02:47]}  Nh6 {[%clk 0:03:01]} 11. Bc4 {[%clk 0:02:44]}  O-O {[%clk 0:02:59]} 12. Qe2 {[%clk 0:02:43]}  d5 {[%clk 0:02:55]} 13. exd6 {[%clk 0:02:37]}  exd6 {[%clk 0:02:55]} 14. Bxg7 {[%clk 0:02:36]}  Kxg7 {[%clk 0:02:54]} 15. h3 {[%clk 0:02:19]}  d5 {[%clk 0:02:48]} 16. Bd3 {[%clk 0:02:17]}  Qxf4 {[%clk 0:02:45]} 17. Rf1 {[%clk 0:02:12]}  Qg3+ {[%clk 0:02:45]} 18. Kd2 {[%clk 0:02:04]}  Bf5 {[%clk 0:02:43]} 19. Rae1 {[%clk 0:01:52]}  Rae8 {[%clk 0:02:41]} 20. Qf2 {[%clk 0:01:51]}  Qg5+ {[%clk 0:02:39]} 21. Kd1 {[%clk 0:01:47]}  Bxd3 {[%clk 0:02:38]} 22. cxd3 {[%clk 0:01:48]}  Nf5 {[%clk 0:02:38]} 23. Qd2 {[%clk 0:01:28]}  Ne3+ {[%clk 0:02:31]} 24. Kc1 {[%clk 0:01:28]}  d4 {[%clk 0:02:30]} 25. Ne4 {[%clk 0:01:25]}  Qd5 {[%clk 0:02:28]} 26. Rxe3 {[%clk 0:01:16]}  dxe3 {[%clk 0:02:25]} 27. Qxe3 {[%clk 0:01:10]}  f5 {[%clk 0:02:24]} 28. Qxa7+ {[%clk 0:01:00]}  Rf7 {[%clk 0:02:24]} 0-1


[Site "https://www.chess.com"]

[Event "Titled Tuesday Blitz October 19 2021"]
[White "Kovalev, Vladislav"]
[Black "Nguyen, Ngoc Truong Son"]
[WhiteFideId "13504398"]
[BlackFideId "12401110"]
[WhiteElo "2573"]
[BlackElo "2596"]
[Result "1/2-1/2"]
[Round "11"]
[TimeControl "180+1"]
[Date "2021.10.19"]
[WhiteClock "0:00:07"]
[BlackClock "0:00:07"]

1. e4 {[%clk 0:03:00]}  e5 {[%clk 0:03:00]} 2. Nf3 {[%clk 0:03:01]}  Nf6 {[%clk 0:03:00]} 3. Nxe5 {[%clk 0:03:01]}  d6 {[%clk 0:03:00]} 4. Nf3 {[%clk 0:02:57]}  Nxe4 {[%clk 0:03:00]} 5. Bd3 {[%clk 0:02:58]}  Nf6 {[%clk 0:02:52]} 6. O-O {[%clk 0:02:58]}  Be7 {[%clk 0:02:53]} 7. c3 {[%clk 0:02:58]}  O-O {[%clk 0:02:52]} 8. Bc2 {[%clk 0:02:59]}  Bg4 {[%clk 0:02:48]} 9. h3 {[%clk 0:02:58]}  Bh5 {[%clk 0:02:48]} 10. d4 {[%clk 0:02:58]}  Nbd7 {[%clk 0:02:44]} 11. Nbd2 {[%clk 0:02:59]}  d5 {[%clk 0:02:43]} 12. Bf5 {[%clk 0:02:16]}  Bd6 {[%clk 0:02:33]} 13. Qb3 {[%clk 0:02:15]}  Rb8 {[%clk 0:02:16]} 14. a4 {[%clk 0:01:45]}  c6 {[%clk 0:02:14]} 15. a5 {[%clk 0:01:45]}  Qc7 {[%clk 0:02:11]} 16. a6 {[%clk 0:01:41]}  b6 {[%clk 0:02:00]} 17. c4 {[%clk 0:01:41]}  Rbe8 {[%clk 0:01:48]} 18. cxd5 {[%clk 0:01:38]}  cxd5 {[%clk 0:01:16]} 19. Qd3 {[%clk 0:01:34]}  Bg6 {[%clk 0:01:10]} 20. Bxg6 {[%clk 0:01:24]}  hxg6 {[%clk 0:01:11]} 21. Nb1 {[%clk 0:01:23]}  Ne4 {[%clk 0:01:10]} 22. Nc3 {[%clk 0:01:23]}  Nxc3 {[%clk 0:01:10]} 23. bxc3 {[%clk 0:01:23]}  Nf6 {[%clk 0:01:08]} 24. Ba3 {[%clk 0:01:11]}  Ne4 {[%clk 0:00:59]} 25. Bxd6 {[%clk 0:01:11]}  Nxd6 {[%clk 0:00:59]} 26. Ne5 {[%clk 0:01:07]}  Rc8 {[%clk 0:00:50]} 27. Rac1 {[%clk 0:01:07]}  Nc4 {[%clk 0:00:43]} 28. Rfe1 {[%clk 0:01:07]}  Rfe8 {[%clk 0:00:27]} 29. Nf3 {[%clk 0:01:00]}  Qf4 {[%clk 0:00:19]} 30. Rb1 {[%clk 0:00:38]}  Re4 {[%clk 0:00:17]} 31. Rf1 {[%clk 0:00:24]}  Rce8 {[%clk 0:00:16]} 32. Rb5 {[%clk 0:00:24]}  Qd6 {[%clk 0:00:15]} 33. Nd2 {[%clk 0:00:24]}  Nxd2 {[%clk 0:00:13]} 34. Qxd2 {[%clk 0:00:25]}  Qc6 {[%clk 0:00:13]} 35. Qd3 {[%clk 0:00:26]}  Rc8 {[%clk 0:00:08]} 36. g3 {[%clk 0:00:23]}  Re7 {[%clk 0:00:07]} 37. Rfb1 {[%clk 0:00:19]}  Qxc3 {[%clk 0:00:05]} 38. Qxc3 {[%clk 0:00:18]}  Rxc3 {[%clk 0:00:06]} 39. Rxd5 {[%clk 0:00:19]}  Ra3 {[%clk 0:00:06]} 40. Rd8+ {[%clk 0:00:17]}  Kh7 {[%clk 0:00:06]} 41. d5 {[%clk 0:00:17]}  Rxa6 {[%clk 0:00:06]} 42. d6 {[%clk 0:00:18]}  Re6 {[%clk 0:00:06]} 43. Rd1 {[%clk 0:00:18]}  b5 {[%clk 0:00:06]} 44. Rd7 {[%clk 0:00:16]}  f6 {[%clk 0:00:04]} 45. h4 {[%clk 0:00:12]}  Rb6 {[%clk 0:00:04]} 46. Rxa7 {[%clk 0:00:07]}  Rexd6 {[%clk 0:00:04]} 47. Rc1 {[%clk 0:00:07]}  Ra6 {[%clk 0:00:03]} 48. Rb7 {[%clk 0:00:07]}  Rdb6 {[%clk 0:00:03]} 49. Rf7 {[%clk 0:00:06]}  Ra8 {[%clk 0:00:02]} 50. Rcc7 {[%clk 0:00:07]}  Rg8 {[%clk 0:00:02]} 51. Rb7 {[%clk 0:00:07]}  Rxb7 {[%clk 0:00:03]} 52. Rxb7 {[%clk 0:00:08]}  Kh6 {[%clk 0:00:03]} 53. Rxb5 {[%clk 0:00:09]}  f5 {[%clk 0:00:04]} 54. Kg2 {[%clk 0:00:09]}  Rf8 {[%clk 0:00:04]} 55. Rb6 {[%clk 0:00:09]}  Kh7 {[%clk 0:00:04]} 56. Kh3 {[%clk 0:00:09]}  Re8 {[%clk 0:00:05]} 57. Rb4 {[%clk 0:00:09]}  Re2 {[%clk 0:00:05]} 58. Kg2 {[%clk 0:00:10]}  Re6 {[%clk 0:00:05]} 59. Kf3 {[%clk 0:00:10]}  Ra6 {[%clk 0:00:05]} 60. Kf4 {[%clk 0:00:10]}  Ra2 {[%clk 0:00:05]} 61. f3 {[%clk 0:00:11]}  Ra5 {[%clk 0:00:05]} 62. Kg5 {[%clk 0:00:08]}  Ra3 {[%clk 0:00:05]} 63. Rf4 {[%clk 0:00:07]}  Ra6 {[%clk 0:00:04]} 64. Rd4 {[%clk 0:00:04]}  Ra3 {[%clk 0:00:04]} 65. Kf4 {[%clk 0:00:05]}  Ra5 {[%clk 0:00:04]} 66. Rc4 {[%clk 0:00:04]}  Ra6 {[%clk 0:00:04]} 67. Kg5 {[%clk 0:00:04]}  Ra5 {[%clk 0:00:04]} 68. h5 {[%clk 0:00:02]}  gxh5 {[%clk 0:00:04]} 69. Kxh5 {[%clk 0:00:03]}  f4+ {[%clk 0:00:04]} 70. Kg4 {[%clk 0:00:03]}  fxg3 {[%clk 0:00:05]} 71. Kxg3 {[%clk 0:00:04]}  Rg5+ {[%clk 0:00:05]} 72. Rg4 {[%clk 0:00:04]}  Rxg4+ {[%clk 0:00:05]} 73. Kxg4 {[%clk 0:00:05]}  Kg6 {[%clk 0:00:05]} 74. f4 {[%clk 0:00:06]}  Kf6 {[%clk 0:00:06]} 75. f5 {[%clk 0:00:07]}  g6 {[%clk 0:00:06]} 76. fxg6 {[%clk 0:00:07]}  Kxg6 {[%clk 0:00:07]} 1/2-1/2


[Site "https://www.chess.com"]

[Event "Titled Tuesday Blitz October 19 2021"]
[White "Lazavik, Denis"]
[Black "Bortnyk, Olexandr"]
[WhiteFideId "13515110"]
[BlackFideId "14120828"]
[WhiteElo "2436"]
[BlackElo "2723"]
[Result "1-0"]
[Round "11"]
[TimeControl "180+1"]
[Date "2021.10.19"]
[WhiteClock "0:00:21"]
[BlackClock "0:00:04"]

1. d4 {[%clk 0:03:00]}  Nf6 {[%clk 0:02:55]} 2. c4 {[%clk 0:03:01]}  d6 {[%clk 0:02:55]} 3. Nf3 {[%clk 0:03:01]}  g6 {[%clk 0:02:54]} 4. g3 {[%clk 0:03:01]}  Bg7 {[%clk 0:02:54]} 5. Nc3 {[%clk 0:03:00]}  O-O {[%clk 0:02:55]} 6. Bg2 {[%clk 0:03:01]}  Bf5 {[%clk 0:02:55]} 7. Nh4 {[%clk 0:03:01]}  Bc8 {[%clk 0:02:51]} 8. O-O {[%clk 0:03:01]}  e5 {[%clk 0:02:43]} 9. Nf3 {[%clk 0:02:58]}  Nbd7 {[%clk 0:02:38]} 10. e4 {[%clk 0:02:58]}  c6 {[%clk 0:02:38]} 11. h3 {[%clk 0:02:55]}  Qb6 {[%clk 0:02:36]} 12. Re1 {[%clk 0:02:55]}  exd4 {[%clk 0:02:35]} 13. Nxd4 {[%clk 0:02:55]}  Ng4 {[%clk 0:02:34]} 14. Nce2 {[%clk 0:02:55]}  Nge5 {[%clk 0:02:25]} 15. b3 {[%clk 0:02:55]}  Nc5 {[%clk 0:02:12]} 16. Be3 {[%clk 0:02:55]}  Ned3 {[%clk 0:01:58]} 17. Rf1 {[%clk 0:02:55]}  a5 {[%clk 0:01:58]} 18. a3 {[%clk 0:02:40]}  Re8 {[%clk 0:01:47]} 19. Rb1 {[%clk 0:02:35]}  f5 {[%clk 0:01:16]} 20. b4 {[%clk 0:02:28]}  axb4 {[%clk 0:01:11]} 21. axb4 {[%clk 0:02:29]}  Nxb4 {[%clk 0:01:06]} 22. Nc2 {[%clk 0:02:13]}  Ra4 {[%clk 0:00:59]} 23. Qxd6 {[%clk 0:02:08]}  Bf8 {[%clk 0:00:58]} 24. Qd2 {[%clk 0:02:05]}  Rd8 {[%clk 0:00:52]} 25. Qc3 {[%clk 0:01:47]}  Rd3 {[%clk 0:00:06]} 26. Qe5 {[%clk 0:01:29]}  Qa5 {[%clk 0:00:02]} 27. Nxb4 {[%clk 0:01:23]}  Rxb4 {[%clk 0:00:03]} 28. Rxb4 {[%clk 0:01:23]}  Qxb4 {[%clk 0:00:04]} 29. Bd4 {[%clk 0:01:23]}  Ne6 {[%clk 0:00:03]} 30. Qh8+ {[%clk 0:01:19]}  Kf7 {[%clk 0:00:03]} 31. Qxh7+ {[%clk 0:01:20]}  Bg7 {[%clk 0:00:03]} 32. Bxg7 {[%clk 0:01:18]}  Nxg7 {[%clk 0:00:04]} 33. Nf4 {[%clk 0:01:18]}  Rd6 {[%clk 0:00:04]} 34. e5 {[%clk 0:01:18]}  Re6 {[%clk 0:00:05]} 35. Nxe6 {[%clk 0:01:18]}  Bxe6 {[%clk 0:00:06]} 36. Rd1 {[%clk 0:01:11]}  Qxc4 {[%clk 0:00:05]} 37. Qh8 {[%clk 0:01:09]}  Qc5 {[%clk 0:00:04]} 38. Qb8 {[%clk 0:01:05]}  Qb6 {[%clk 0:00:04]} 39. Rd8 {[%clk 0:01:01]}  g5 {[%clk 0:00:04]} 40. Rf8+ {[%clk 0:01:00]}  Kg6 {[%clk 0:00:04]} 41. Rf6+ {[%clk 0:01:00]}  Kh7 {[%clk 0:00:05]} 42. Qd6 {[%clk 0:00:57]}  Qb3 {[%clk 0:00:04]} 43. Qd8 {[%clk 0:00:49]}  Qb2 {[%clk 0:00:04]} 44. Qc7 {[%clk 0:00:38]}  Qa1+ {[%clk 0:00:04]} 45. Kh2 {[%clk 0:00:37]}  Qa2 {[%clk 0:00:04]} 46. Qxb7 {[%clk 0:00:30]}  Qxf2 {[%clk 0:00:05]} 47. Rxe6 {[%clk 0:00:27]}  f4 {[%clk 0:00:05]} 48. Qb1+ {[%clk 0:00:21]}  Kh8 {[%clk 0:00:05]} 49. Rf6 {[%clk 0:00:21]}  Qxg3+ {[%clk 0:00:04]} 50. Kh1 {[%clk 0:00:21]}  Qe3 {[%clk 0:00:04]} 51. Rf8# {[%clk 0:00:21]} 1-0


[Site "https://www.chess.com"]

[Event "Titled Tuesday Blitz October 19 2021"]
[White "Maly, Alexey"]
[Black "Sawlin, Leonid"]
[WhiteFideId "14103184"]
[BlackFideId "4689542"]
[WhiteElo "2294"]
[BlackElo "2412"]
[Result "1/2-1/2"]
[Round "11"]
[TimeControl "180+1"]
[Date "2021.10.19"]
[WhiteClock "0:00:15"]
[BlackClock "0:00:38"]

1. d4 {[%clk 0:03:00]}  e6 {[%clk 0:02:59]} 2. c4 {[%clk 0:03:01]}  d5 {[%clk 0:02:57]} 3. Nf3 {[%clk 0:03:01]}  Nf6 {[%clk 0:02:58]} 4. e3 {[%clk 0:03:01]}  Nbd7 {[%clk 0:02:56]} 5. Nbd2 {[%clk 0:03:02]}  a6 {[%clk 0:02:56]} 6. Bd3 {[%clk 0:03:02]}  dxc4 {[%clk 0:02:55]} 7. Nxc4 {[%clk 0:03:02]}  b5 {[%clk 0:02:56]} 8. Nce5 {[%clk 0:03:03]}  c5 {[%clk 0:02:56]} 9. O-O {[%clk 0:03:01]}  Bb7 {[%clk 0:02:55]} 10. a4 {[%clk 0:03:00]}  c4 {[%clk 0:02:52]} 11. Be2 {[%clk 0:02:59]}  Bd6 {[%clk 0:02:52]} 12. axb5 {[%clk 0:02:51]}  axb5 {[%clk 0:02:53]} 13. Rxa8 {[%clk 0:02:51]}  Qxa8 {[%clk 0:02:53]} 14. b3 {[%clk 0:02:48]}  Nd5 {[%clk 0:02:35]} 15. bxc4 {[%clk 0:02:35]}  Nc3 {[%clk 0:02:35]} 16. Qc2 {[%clk 0:02:35]}  Nxe2+ {[%clk 0:02:35]} 17. Qxe2 {[%clk 0:02:36]}  Bxe5 {[%clk 0:02:33]} 18. dxe5 {[%clk 0:02:30]}  Bxf3 {[%clk 0:02:31]} 19. Qxf3 {[%clk 0:01:47]}  Qxf3 {[%clk 0:02:29]} 20. gxf3 {[%clk 0:01:47]}  bxc4 {[%clk 0:02:30]} 21. Ba3 {[%clk 0:01:22]}  Nxe5 {[%clk 0:02:30]} 22. Rc1 {[%clk 0:01:19]}  Nxf3+ {[%clk 0:02:27]} 23. Kg2 {[%clk 0:01:17]}  Ne5 {[%clk 0:02:24]} 24. Bb2 {[%clk 0:01:14]}  Nd3 {[%clk 0:02:19]} 25. Rxc4 {[%clk 0:01:13]}  O-O {[%clk 0:02:19]} 26. Bd4 {[%clk 0:01:11]}  e5 {[%clk 0:02:16]} 27. Bc3 {[%clk 0:01:11]}  Rd8 {[%clk 0:02:12]} 28. f4 {[%clk 0:01:09]}  exf4 {[%clk 0:02:12]} 29. exf4 {[%clk 0:01:09]}  f6 {[%clk 0:02:07]} 30. Kf3 {[%clk 0:01:08]}  Rd7 {[%clk 0:02:04]} 31. h4 {[%clk 0:01:06]}  Kf7 {[%clk 0:02:04]} 32. h5 {[%clk 0:01:02]}  Ke6 {[%clk 0:02:03]} 33. h6 {[%clk 0:00:59]}  gxh6 {[%clk 0:01:08]} 34. Rc6+ {[%clk 0:00:59]}  Rd6 {[%clk 0:01:08]} 35. f5+ {[%clk 0:00:56]}  Ke7 {[%clk 0:01:03]} 36. Rc7+ {[%clk 0:00:50]}  Ke8 {[%clk 0:01:01]} 37. Rxh7 {[%clk 0:00:47]}  Ne5+ {[%clk 0:00:54]} 38. Ke4 {[%clk 0:00:40]}  Nf7 {[%clk 0:00:50]} 39. Rg7 {[%clk 0:00:40]}  Rb6 {[%clk 0:00:46]} 40. Rg6 {[%clk 0:00:38]}  Ke7 {[%clk 0:00:46]} 41. Bd4 {[%clk 0:00:36]}  Nd6+ {[%clk 0:00:44]} 42. Kd5 {[%clk 0:00:35]}  Rb5+ {[%clk 0:00:44]} 43. Kc6 {[%clk 0:00:32]}  Rxf5 {[%clk 0:00:43]} 44. Bc5 {[%clk 0:00:29]}  Kf7 {[%clk 0:00:44]} 45. Rxh6 {[%clk 0:00:27]}  Ne4 {[%clk 0:00:44]} 46. Bd4 {[%clk 0:00:25]}  Ke6 {[%clk 0:00:41]} 47. Rh4 {[%clk 0:00:23]}  Ng5 {[%clk 0:00:39]} 48. Rh6 {[%clk 0:00:21]}  Nf3 {[%clk 0:00:39]} 49. Rxf6+ {[%clk 0:00:14]}  Rxf6 {[%clk 0:00:38]} 50. Bxf6 {[%clk 0:00:15]} 1/2-1/2


[Site "https://www.chess.com"]

[Event "Titled Tuesday Blitz October 19 2021"]
[White "Matsenko, Andrei"]
[Black "Khusenkhojaev, Muhammad"]
[WhiteFideId "24146501"]
[BlackFideId "14700247"]
[WhiteElo "2179"]
[BlackElo "2190"]
[Result "1-0"]
[Round "11"]
[TimeControl "180+1"]
[Date "2021.10.19"]
[WhiteClock "0:01:00"]
[BlackClock "0:00:01"]

1. Nf3 {[%clk 0:02:49]}  Nf6 {[%clk 0:02:59]} 2. b3 {[%clk 0:02:48]}  g6 {[%clk 0:02:58]} 3. Bb2 {[%clk 0:02:49]}  Bg7 {[%clk 0:02:58]} 4. g3 {[%clk 0:02:50]}  O-O {[%clk 0:02:57]} 5. d4 {[%clk 0:02:51]}  d5 {[%clk 0:02:57]} 6. Bg2 {[%clk 0:02:52]}  Ne4 {[%clk 0:02:56]} 7. O-O {[%clk 0:02:53]}  c5 {[%clk 0:02:56]} 8. e3 {[%clk 0:02:52]}  Nc6 {[%clk 0:02:55]} 9. c3 {[%clk 0:02:53]}  Bf5 {[%clk 0:02:50]} 10. Nbd2 {[%clk 0:02:52]}  Rc8 {[%clk 0:02:44]} 11. Rc1 {[%clk 0:02:52]}  Qa5 {[%clk 0:02:43]} 12. a3 {[%clk 0:02:51]}  cxd4 {[%clk 0:02:39]} 13. b4 {[%clk 0:02:51]}  Qb6 {[%clk 0:02:33]} 14. cxd4 {[%clk 0:02:50]}  a5 {[%clk 0:02:31]} 15. Nxe4 {[%clk 0:02:49]}  dxe4 {[%clk 0:02:28]} 16. Nd2 {[%clk 0:02:47]}  axb4 {[%clk 0:02:28]} 17. axb4 {[%clk 0:02:48]}  Nxb4 {[%clk 0:02:13]} 18. Rxc8 {[%clk 0:02:42]}  Rxc8 {[%clk 0:02:12]} 19. Nxe4 {[%clk 0:02:43]}  Nc2 {[%clk 0:01:44]} 20. Bc1 {[%clk 0:02:38]}  e5 {[%clk 0:01:21]} 21. g4 {[%clk 0:02:31]}  Be6 {[%clk 0:01:00]} 22. d5 {[%clk 0:02:31]}  Bd7 {[%clk 0:01:00]} 23. h3 {[%clk 0:02:27]}  Nb4 {[%clk 0:00:55]} 24. Ba3 {[%clk 0:02:26]}  Qa5 {[%clk 0:00:53]} 25. Bxb4 {[%clk 0:02:26]}  Qxb4 {[%clk 0:00:53]} 26. Qa1 {[%clk 0:02:26]}  b5 {[%clk 0:00:46]} 27. Rb1 {[%clk 0:02:27]}  Qa4 {[%clk 0:00:42]} 28. d6 {[%clk 0:02:19]}  f5 {[%clk 0:00:35]} 29. gxf5 {[%clk 0:02:16]}  gxf5 {[%clk 0:00:35]} 30. Qxa4 {[%clk 0:02:16]}  bxa4 {[%clk 0:00:34]} 31. Ng3 {[%clk 0:02:16]}  e4 {[%clk 0:00:30]} 32. Rb7 {[%clk 0:02:15]}  Rd8 {[%clk 0:00:24]} 33. Bf1 {[%clk 0:02:12]}  a3 {[%clk 0:00:22]} 34. Bc4+ {[%clk 0:02:12]}  Kh8 {[%clk 0:00:20]} 35. Ra7 {[%clk 0:02:06]}  Bb2 {[%clk 0:00:20]} 36. Ba2 {[%clk 0:02:06]}  Bc6 {[%clk 0:00:19]} 37. Nxf5 {[%clk 0:02:01]}  Bd7 {[%clk 0:00:17]} 38. Nh6 {[%clk 0:01:54]}  Be8 {[%clk 0:00:16]} 39. Re7 {[%clk 0:01:47]}  Bg6 {[%clk 0:00:15]} 40. d7 {[%clk 0:01:46]}  Bf6 {[%clk 0:00:13]} 41. Re6 {[%clk 0:01:37]}  Kg7 {[%clk 0:00:13]} 42. Ng4 {[%clk 0:01:34]}  Bb2 {[%clk 0:00:13]} 43. Rd6 {[%clk 0:01:20]}  Bf5 {[%clk 0:00:12]} 44. Nh6 {[%clk 0:01:17]}  Bxd7 {[%clk 0:00:12]} 45. Nf7 {[%clk 0:01:15]}  Be6 {[%clk 0:00:07]} 46. Nxd8 {[%clk 0:01:14]}  Bxa2 {[%clk 0:00:07]} 47. Nc6 {[%clk 0:01:08]}  Bf7 {[%clk 0:00:07]} 48. Nb4 {[%clk 0:01:06]}  Bc3 {[%clk 0:00:07]} 49. Nc2 {[%clk 0:01:03]}  a2 {[%clk 0:00:06]} 50. Ra6 {[%clk 0:01:04]}  Bb3 {[%clk 0:00:06]} 51. Ra7+ {[%clk 0:01:04]}  Kf6 {[%clk 0:00:05]} 52. Nd4 {[%clk 0:01:02]}  Bc4 {[%clk 0:00:02]} 53. Nc2 {[%clk 0:01:02]}  Bb3 {[%clk 0:00:02]} 54. Nd4 {[%clk 0:01:02]}  Bd5 {[%clk 0:00:01]} 55. Ra6+ {[%clk 0:01:00]} 1-0


[Site "https://www.chess.com"]